bitfinex-derivatives/quotes_ETHF0:USTF0_20250929
["timestamp","ask_amount","ask_price","bid_price","bid_amount"]
[1759150960146,4.38365,4095.1,4095.0,0.00219821]
[1759150960351,1.17594,4094.2,4094.1,0.4348]
[1759150961360,1.17594,4094.2,4094.1,0.22561012]
[1759150963952,1.17594,4094.2,4094.1,0.00291012]
[1759150964459,1.42494,4094.2,4094.1,0.00291012]
[1759150967253,1.42494,4094.2,4093.4,3.2078]
[1759150967254,0.9855,4094.2,4093.4,3.2078]
[1759150967462,0.9855,4094.2,4092.9,0.02443285]
[1759150967463,1.30357,4093.0,4092.9,0.02443285]
[1759150967757,0.43963,4092.4,4092.3,3.2078]
[1759150967955,0.7365,4092.4,4092.0,0.249]
[1759150968156,0.5224,4091.9,4091.8,3.6426]
[1759150968362,0.73941712,4091.9,4091.8,3.64502668]
[1759150968570,0.73941712,4091.9,4091.8,3.43292668]
[1759150968764,0.73941712,4091.9,4091.8,3.21022668]
[1759150969167,0.73941712,4091.9,4091.8,3.43292668]
[1759150969466,0.73941712,4091.9,4091.8,0.00242668]
[1759150969664,0.43979,4091.0,4090.9,0.2227]
[1759150969968,0.3171,4091.0,4090.9,0.7057]
[1759150970458,0.96225,4090.4,4090.3,3.9135]
[1759150970664,0.96225,4090.4,4090.3,3.64552449]
[1759150971359,1.17635,4090.4,4090.3,3.43342449]
[1759150971561,0.6452,4090.0,4089.9,0.4348]
[1759150971857,0.5224,4090.0,4089.9,0.4348]
[1759150972162,0.1275,4091.0,4090.7,0.7057]
[1759150972163,0.3171,4090.8,4090.7,0.7057]
[1759150972366,0.3171,4091.2,4091.1,0.4348]
[1759150972560,0.3171,4091.2,4091.1,0.7057]
[1759150972864,0.7365,4091.2,4091.1,0.22450478]
[1759150973053,0.5224,4091.2,4091.1,0.43660478]
[1759150973258,0.5224,4091.2,4091.1,0.70750478]
[1759150973865,3.3353,4091.5,4091.3,0.4348]
[1759150973866,0.3171,4091.4,4091.3,0.4348]
[1759150974168,0.3171,4091.4,4091.3,0.7066]
[1759150974361,0.66740712,4091.9,4091.8,0.4417]
[1759150974567,0.44260712,4091.9,4091.8,0.7135]
[1759150974764,0.00291712,4091.9,4091.8,5.7135]
[1759150975167,0.00291712,4091.9,4091.8,6.1532]
[1759150975466,3.2078,4092.6,4092.5,0.3366]
[1759150975772,0.43958,4093.0,4092.6,0.2689]
[1759150975962,0.43961,4092.7,4092.6,0.2689]
[1759150976164,0.3302,4093.3,4092.6,0.2689]
[1759150976462,0.43957,4093.1,4092.7,0.2689]
[1759150976668,0.43957,4093.1,4092.6,0.2689]
[1759150976863,0.44161567,4093.3,4092.6,0.2689]
[1759150977071,0.44161567,4093.3,4093.0,0.1276]
[1759150977267,0.00207567,4093.3,4093.1,0.25]
[1759150977463,0.43955,4093.2,4093.0,3.2078]
[1759150977769,0.00207567,4093.3,4092.5,3.2078]
[1759150977770,0.76981,4092.6,4092.5,3.2078]
[1759150977963,0.76981,4092.6,4092.5,3.4578]
[1759150978166,0.3302,4093.2,4092.5,3.5854]
[1759150978368,0.44161567,4093.3,4092.6,0.2689]
[1759150978572,0.43956,4093.2,4092.6,0.2689]
[1759150978772,0.00207567,4093.3,4092.6,0.2689]
[1759150979170,0.00207567,4093.3,4092.6,0.4396]
[1759150979367,0.43955,4093.2,4092.6,0.43961]
[1759150979766,0.00207567,4093.3,4093.2,0.2689]
[1759150979966,0.00207567,4093.3,4093.2,0.5189]
[1759150980576,0.76975,4093.2,4093.0,3.4767]
[1759150980776,0.3302,4093.1,4093.0,3.2078]
[1759150980977,0.3302,4093.1,4093.0,3.4588]
[1759150981174,0.00207567,4093.3,4093.1,0.2689]
[1759150981772,0.44161567,4093.3,4093.2,0.251]
[1759150982074,0.44161567,4093.3,4093.1,0.2689]
[1759150982268,0.76976,4093.1,4093.0,3.2078]
[1759150982469,0.76976,4093.1,4093.0,3.4588]
[1759150982672,0.76981,4092.6,4092.5,3.2078]
[1759150982863,0.76987,4092.1,4092.0,3.2078]
[1759150983072,0.76987,4092.1,4092.0,3.4588]
[1759150983267,0.76996,4091.2,4090.9,0.2689]
[1759150983469,0.76996,4091.2,4091.0,0.251]
[1759150983663,3.2078,4091.5,4091.0,0.251]
[1759150983871,0.3302,4091.9,4091.3,3.2078]
[1759150984073,0.43969,4091.9,4091.4,0.69074]
[1759150984276,0.43969,4091.9,4091.6,0.43972]
[1759150984474,0.43969,4091.9,4091.7,0.5199]
[1759150984678,3.538,4092.2,4092.0,0.43967]
[1759150984878,3.538,4092.2,4092.0,0.95957]
[1759150985483,0.3302,4092.1,4091.1,0.00180478]
[1759150985780,0.3302,4091.4,4091.1,0.00180478]
[1759150985969,3.2078,4091.7,4091.4,0.43974]
[1759150986170,3.2078,4091.7,4091.5,0.2689]
[1759150986376,0.3302,4091.6,4091.2,0.43976]
[1759150986576,3.2078,4091.7,4091.2,0.43976]
[1759150986577,0.1259,4091.5,4091.2,0.43976]
[1759150986777,3.538,4091.7,4091.3,0.251]
[1759150987074,3.538,4091.7,4091.1,0.00180478]
[1759150987075,3.2078,4091.7,4091.1,0.00180478]
[1759150987273,3.2078,4091.7,4091.2,0.95966]
[1759150987472,0.3302,4091.6,4091.2,0.95966]
[1759150987663,0.3302,4091.6,4091.2,0.251]
[1759150987866,3.2078,4091.7,4091.6,0.2689]
[1759150988268,3.2078,4091.7,4091.1,0.00180478]
[1759150988269,0.43971,4091.7,4091.2,0.43976]
[1759150988468,0.43971,4091.7,4091.3,0.252]
[1759150988669,0.3302,4091.5,4091.4,0.252]
[1759150988872,0.4561,4091.5,4091.4,0.252]
[1759150989172,0.3302,4091.2,4091.1,0.00180478]
[1759150989575,3.538,4091.2,4091.1,0.25380478]
[1759150991282,3.2078,4091.2,4091.1,0.52270478]
[1759150991483,3.2078,4091.2,4091.1,0.25380478]
[1759150991484,3.538,4091.2,4091.1,0.25380478]
[1759150992169,3.2078,4091.2,4091.1,0.25380478]
[1759150992377,0.56563,4091.5,4091.3,0.43975]
[1759150992683,0.3302,4091.4,4091.1,0.52270478]
[1759150992976,0.3302,4091.3,4091.1,0.69357478]
[1759150993184,0.3302,4091.3,4091.2,0.43976]
[1759150993377,0.3365,4091.2,4091.1,0.00180478]
[1759150993678,3.5443,4091.2,4091.1,0.25380478]
[1759150993877,3.2078,4091.2,4091.1,0.52100478]
[1759150994568,3.2078,4091.2,4091.1,5.26900478]
[1759150994778,3.2078,4091.2,4091.1,5.52100478]
[1759150994980,0.3365,4091.7,4091.1,6.62043478]
[1759150995183,0.3365,4091.7,4091.4,0.43973]
[1759150995484,0.3365,4091.2,4091.1,0.44157478]
[1759150995683,0.3365,4091.2,4091.1,0.00180478]
[1759150996183,0.3365,4091.2,4091.1,0.25480478]
[1759150997174,0.3365,4091.2,4091.1,0.00180478]
[1759150998082,0.77626,4091.2,4091.1,0.00180478]
[1759150998983,1.22336,4091.2,4091.1,0.00180478]
[1759150999185,6.22336,4091.2,4091.1,0.00180478]
[1759151000084,1.22336,4091.2,4091.1,0.00180478]
[1759151000888,0.7836,4091.2,4091.1,0.86977478]
[1759151001085,1.22336,4091.2,4091.1,0.86977478]
[1759151001784,0.7836,4091.2,4091.1,0.86977478]
[1759151001979,0.1365,4091.5,4091.4,0.43974]
[1759151002184,0.3608,4091.5,4091.4,0.86794]
[1759151002685,0.6973,4091.5,4091.4,0.86794]
[1759151003083,1.35983,4091.5,4091.4,0.4282]
[1759151003278,1.22334,4091.4,4091.3,0.43975]
[1759151003483,0.7836,4091.4,4091.3,0.86795]
[1759151003685,0.5608,4091.4,4091.3,0.86795]
[1759151004389,0.7836,4091.4,4091.3,0.65175]
[1759151004680,0.5608,4091.4,4091.3,1.11165]
[1759151004886,0.5608,4091.4,4091.3,1.38035]
[1759151005089,0.5608,4091.4,4091.3,1.11165]
[1759151005589,0.5608,4091.4,4091.3,1.38035]
[1759151006082,0.5608,4091.4,4091.3,1.11065]
[1759151006990,1.21774,4091.4,4091.3,1.11065]
[1759151007286,0.43976,4091.2,4091.1,0.00180478]
[1759151007589,4.41476,4091.2,4091.1,0.00180478]
[1759151009183,4.41476,4091.2,4091.1,0.21150478]
[1759151009584,4.41476,4091.2,4091.1,0.00180478]
[1759151013089,5.19334577,4091.2,4091.1,0.00180478]
[1759151013392,1.20701,4090.8,4090.7,0.0244]
[1759151014001,0.98986,4090.3,4090.2,0.64957]
[1759151014294,0.99239534,4090.3,4090.2,0.65149263]
[1759151014686,1.20959534,4090.3,4090.2,0.00192263]
[1759151016590,1.10756854,4090.3,4090.2,0.00192263]
[1759151017594,1.10756854,4090.3,4090.2,0.21162263]
[1759151017795,0.66770854,4090.3,4090.2,0.21162263]
[1759151017989,0.66770854,4090.3,4090.2,0.85839263]
[1759151018190,0.32713534,4090.3,4090.2,1.17529263]
[1759151018396,0.00253534,4090.3,4090.2,1.17529263]
[1759151018594,0.1291,4091.0,4090.9,0.4398]
[1759151018792,0.1365,4091.5,4091.4,0.43974]
[1759151018989,3.2078,4091.8,4091.6,0.43972]
[1759151019194,0.3246,4091.7,4091.6,0.43972]
[1759151019395,3.2078,4091.8,4091.3,0.43975]
[1759151019396,0.56884,4091.5,4091.3,0.43975]
[1759151019596,0.3246,4091.4,4091.3,0.253]
[1759151020896,0.45652882,4091.5,4091.4,0.43974]
[1759151021197,0.3246,4091.4,4091.3,0.69174]
[1759151021391,0.00282882,4091.5,4091.4,0.3169]
[1759151022496,0.32742882,4091.5,4091.4,0.3169]
[1759151022799,0.32742882,4091.5,4091.4,0.5689]
[1759151023001,0.57166882,4091.5,4091.4,0.252]
[1759151023191,0.45652882,4091.5,4091.4,0.252]
[1759151023496,0.00282882,4091.5,4091.4,0.5689]
[1759151024300,0.00282882,4091.5,4091.4,5.5689]
[1759151025595,3.2078,4091.8,4091.7,0.75661]
[1759151025799,3.6475,4091.8,4091.5,0.75663]
[1759151025998,0.3246,4091.7,4091.6,0.43972]
[1759151026298,0.3246,4091.7,4091.6,0.69172]
[1759151026299,1.20691,4091.7,4091.6,0.69172]
[1759151026592,0.77002845,4091.7,4091.6,1.10832]
[1759151026791,0.00282845,4091.7,4091.6,6.42522]
[1759151027196,0.00282845,4091.7,4091.6,1.17322]
[1759151027197,0.55282845,4091.7,4091.6,1.17322]
[1759151027389,1.20973845,4091.7,4091.6,0.85632]
[1759151027590,1.20973845,4091.7,4091.6,0.64942]
[1759151027790,0.77002845,4091.7,4091.6,0.90142]
[1759151027990,0.00282845,4091.7,4091.6,1.42522]
[1759151028192,0.00282845,4091.7,4091.6,1.42622]
[1759151030401,0.32742845,4091.7,4091.6,1.42622]
[1759151030895,0.55282845,4091.7,4091.6,1.42622]
[1759151031407,1.20692,4091.6,4091.5,0.43973]
[1759151031592,1.20692,4091.6,4091.5,0.69273]
[1759151031793,1.20692,4091.6,4091.5,0.90243]
[1759151032097,1.20692,4091.6,4091.5,0.2097]
[1759151032306,0.5717,4091.0,4090.9,0.43979]
[1759151032601,0.5717,4091.0,4090.9,1.10839]
[1759151032602,0.8963,4091.0,4090.9,1.10839]
[1759151032992,0.8963,4091.0,4090.6,3.5247]
[1759151032993,0.7672,4090.7,4090.6,0.2097]
[1759151033198,0.55,4090.3,4090.2,0.73542263]
[1759151033496,3.5324,4090.8,4090.3,1.09965]
[1759151033797,3.2078,4090.8,4090.7,1.17332]
[1759151034101,3.7359,4090.8,4090.7,1.42532]
[1759151034504,3.7359,4090.8,4090.7,1.10842]
[1759151034703,4.17571,4090.8,4090.7,1.10842]
[1759151035002,4.39561,4090.8,4090.7,1.10842]
[1759151035197,3.9558,4090.8,4090.7,1.10842]
[1759151035398,3.2078,4090.8,4090.7,1.43212]
[1759151036001,3.9558,4090.8,4090.7,1.10842]
[1759151036806,3.9558,4090.8,4090.7,1.43212]
[1759151037101,3.2078,4090.8,4090.7,1.43212]
[1759151037500,0.3169,4091.2,4091.1,0.43977]
[1759151037704,0.5281,4091.2,4091.1,1.44787]
[1759151037898,0.748,4091.2,4090.7,0.3237]
[1759151038098,0.748,4091.1,4091.0,0.43977]
[1759151038300,0.748,4091.1,4091.0,0.87217]
[1759151038505,0.748,4091.1,4091.0,1.12417]
[1759151039408,0.748,4091.1,4091.0,0.87217]
[1759151039600,0.748,4090.9,4090.8,0.0244]
[1759151039897,0.748,4090.9,4090.8,0.71621]
[1759151040302,0.748,4090.9,4090.8,0.93911]
[1759151040808,1.1878,4090.9,4090.8,0.0244]
[1759151041004,4.3956,4090.9,4090.8,0.2764]
[1759151041404,4.3956,4090.9,4090.8,0.0244]
[1759151041708,9.3956,4090.9,4090.8,0.0244]
[1759151041910,1.18786,4090.3,4090.2,0.00192263]
[1759151042110,4.39566,4090.3,4090.2,0.25392263]
[1759151042510,4.39566,4090.3,4090.2,0.00192263]
[1759151042711,9.39566,4090.3,4090.2,0.00192263]
[1759151043604,4.39566,4090.3,4090.2,0.00192263]
[1759151046210,9.39566,4090.3,4090.2,0.00192263]
[1759151046612,4.39566,4090.3,4090.2,0.00192263]
[1759151046810,9.39566,4090.3,4090.2,0.00192263]
[1759151047007,0.2112,4089.1,4089.0,3.4307]
[1759151047210,0.748,4089.1,4089.0,4.1227]
[1759151047413,0.1314,4089.5,4089.4,0.43996]
[1759151047610,0.4311,4089.1,4089.0,3.2078]
[1759151047806,0.4311,4089.1,4088.0,1.16408]
[1759151047807,0.65121,4088.9,4088.8,0.2229]
[1759151048003,1.18804,4088.7,4088.6,0.2229]
[1759151048211,1.19028037,4088.7,4088.6,0.4749]
[1759151048514,0.748,4088.6,4088.5,3.87378368]
[1759151048717,0.748,4088.6,4088.5,4.12578368]
[1759151049115,1.18804,4088.6,4088.5,4.12578368]
[1759151049412,1.18804,4088.6,4088.5,3.43373368]
[1759151049606,1.18804,4088.6,4088.5,0.00303368]
[1759151049814,1.18804,4088.6,4087.4,0.3237]
[1759151049815,14.91114,4088.6,4087.4,3.2078]
[1759151050012,14.91114,4088.6,4084.3,4.38120347]
[1759151050013,0.44036,4085.7,4085.5,1.29146608]
[1759151050213,11.00541,4087.1,4085.5,1.29146608]
[1759151050214,3.2078,4085.8,4085.5,0.1266]
[1759151050416,3.2078,4085.6,4085.5,0.1266]
[1759151050605,3.2078,4086.5,4086.1,0.3237]
[1759151050815,3.20584425,4086.5,4086.1,0.32630318]
[1759151051011,3.20584425,4086.5,4086.2,0.3237]
[1759151051312,3.20584425,4086.5,4086.3,0.3237]
[1759151051524,3.2078,4087.0,4086.6,0.3237]
[1759151051809,1.10005,4088.8,4088.0,0.1266]
[1759151051810,0.44009,4088.1,4088.0,0.1266]
[1759151052015,3.2078,4088.1,4088.0,0.1266]
[1759151052409,3.2078,4088.1,4088.0,0.6353]
[1759151052615,8.46644495,4088.1,4088.0,0.36755371]
[1759151052810,0.44014,4087.6,4087.5,0.1266]
[1759151053006,3.64794,4087.6,4087.5,0.1266]
[1759151053208,3.2078,4087.6,4087.5,0.1266]
[1759151053417,3.2078,4087.6,4087.5,0.2626]
[1759151053810,3.2078,4087.6,4087.5,0.1266]
[1759151054814,3.2078,4087.6,4087.5,0.4672]
[1759151055205,3.02893721,4087.6,4087.5,5.4672]
[1759151055409,3.21044495,4088.1,4088.0,0.476]
[1759151055614,10.99782,4089.8,4088.5,0.1354]
[1759151055615,3.2078,4088.9,4088.5,0.1354]
[1759151055917,0.44,4089.0,4088.8,3.2078]
[1759151056114,0.44,4089.0,4088.9,0.3406]
[1759151056712,0.44,4089.0,4088.5,0.1354]
[1759151056713,0.44004,4088.6,4088.5,0.1354]
[1759151056914,0.44009,4088.1,4088.0,0.1354]
[1759151057617,0.44013,4087.7,4087.0,3.3432]
[1759151058920,0.44013,4087.7,4087.6,0.3406]
[1759151059718,5.69813,4087.7,4087.5,1.52e-06]
[1759151059923,0.44025,4086.6,4086.5,0.1354]
[1759151060119,3.64805,4086.6,4086.5,0.1354]
[1759151060522,0.44029,4086.2,4086.0,0.1354]
[1759151061120,0.44029,4086.3,4086.0,0.1354]
[1759151061722,0.44029,4086.2,4086.0,0.1354]
[1759151061920,0.44029,4086.2,4082.5,2.17290185]
[1759151061921,0.44051,4084.2,4082.5,2.17290185]
[1759151062124,14.21555,4086.1,4082.8,3.2078]
[1759151062125,3.2078,4083.8,4082.8,3.2078]
[1759151062427,3.2078,4085.4,4085.0,0.1354]
[1759151062727,3.11091152,4085.4,4085.2,1.29237601]
[1759151062922,1.10047,4087.3,4087.0,0.1354]
[1759151062923,0.44019,4087.2,4087.0,0.1354]
[1759151063131,0.44322858,4087.2,4087.0,0.1354]
[1759151063534,0.44025,4086.6,4086.5,0.1354]
[1759151063728,0.44025,4086.6,4086.5,0.98737601]
[1759151064034,0.44025,4086.6,4086.5,1.32797601]
[1759151067128,3.2078,4086.7,4086.6,0.3712]
[1759151067721,3.2078,4086.7,4086.6,1.22317601]
[1759151067931,0.44023,4086.8,4086.6,1.22317601]
[1759151067932,3.21082858,4087.2,4087.0,0.1632]
[1759151068227,3.65101858,4087.2,4087.1,0.3712]
[1759151068529,3.21082858,4087.2,4087.1,0.3712]
[1759151068726,3.21082858,4087.2,4087.1,1.22317601]
[1759151069130,3.21082858,4087.2,4087.1,6.22317601]
[1759151069632,3.21082858,4087.2,4087.1,1.49017601]
[1759151069928,3.21082858,4087.2,4087.1,1.22317601]
[1759151069929,8.47782858,4087.2,4087.1,1.22317601]
[1759151070727,3.21082858,4087.2,4087.1,1.22317601]
[1759151073032,3.21082858,4087.2,4087.1,1.49017601]
[1759151073536,3.21082858,4087.2,4087.1,1.22317601]
[1759151076335,3.21082858,4087.2,4087.1,6.22317601]
[1759151076837,0.00302858,4087.2,4087.1,1.22317601]
[1759151077943,3.21082858,4087.2,4087.1,1.22317601]
[1759151078145,3.75689892,4087.2,4087.1,1.22317601]
[1759151078844,0.44025,4086.6,4086.5,0.1531]
[1759151079542,0.9870035,4086.6,4086.5,0.1354]
[1759151080143,1.2540035,4086.6,4086.5,0.1354]
[1759151080647,0.9870035,4086.6,4086.5,0.5066]
[1759151081136,0.5467535,4086.6,4086.5,0.5066]
[1759151081338,3.2078,4086.7,4086.6,0.44025]
[1759151081634,0.4402,4087.1,4087.0,0.5344]
[1759151081937,0.98487188,4087.1,4087.0,0.5344]
[1759151082343,0.54467188,4087.1,4087.0,0.5344]
[1759151083532,3.65101858,4087.2,4087.1,0.3712]
[1759151083841,3.21082858,4087.2,4087.1,0.3712]
[1759151085640,0.00302858,4087.2,4087.1,0.3712]
[1759151086546,0.44321858,4087.2,4087.1,0.3712]
[1759151086939,0.00302858,4087.2,4087.1,0.8114]
[1759151088438,0.44321858,4087.2,4087.1,0.8114]
[1759151088639,0.00302858,4087.2,4087.1,0.8114]
[1759151089540,0.00302858,4087.2,4087.1,5.8114]
[1759151089738,0.00302858,4087.2,4087.1,1.0774]
[1759151090438,0.44321858,4087.2,4087.1,0.3712]
[1759151090849,0.44321858,4087.2,4087.1,0.6372]
[1759151091737,0.44321858,4087.2,4087.1,0.3712]
[1759151091946,0.00302858,4087.2,4087.1,0.8114]
[1759151092244,3.64784,4088.6,4088.5,0.5344]
[1759151092438,0.97707739,4088.6,4088.5,0.8004]
[1759151092638,0.44002,4088.8,4088.5,1.24044]
[1759151092839,3.64773,4089.6,4089.5,0.5344]
[1759151093034,3.2078,4090.2,4089.7,0.43991]
[1759151093246,0.53161341,4090.1,4090.0,0.1632]
[1759151093543,3.64979131,4090.2,4090.0,0.1632]
[1759151093745,3.64979131,4090.2,4090.1,0.3712]
[1759151093950,4.16649126,4090.2,4090.1,0.3712]
[1759151095042,3.64979131,4090.2,4090.1,0.3712]
[1759151097651,3.20992131,4090.2,4090.1,0.3712]
[1759151097851,0.43976,4091.2,4091.1,0.4079]
[1759151098347,3.91356,4091.2,4091.0,0.1643]
[1759151098851,3.91659136,4091.2,4091.0,0.1643]
[1759151099744,0.43982,4090.7,4090.5,0.1643]
[1759151100449,0.43982,4090.7,4090.6,0.4079]
[1759151100745,3.64762,4090.7,4090.6,0.4079]
[1759151100949,0.43987,4090.1,4089.5,0.16680155]
[1759151101243,3.64767,4090.1,4089.5,0.16680155]
[1759151101444,8.2078,4090.1,4089.5,0.16680155]
[1759151101648,0.43998,4089.1,4088.5,0.1643]
[1759151101845,0.43995,4089.4,4089.0,3.6381]
[1759151102040,0.43993,4089.6,4089.5,0.1643]
[1759151102736,0.43993,4089.6,4089.5,0.16676892]
[1759151102944,0.43993,4089.6,4089.5,0.57466892]
[1759151103546,0.43992,4089.7,4089.6,0.4079]
[1759151103750,3.2078,4090.6,4089.7,0.4079]
[1759151103948,0.4399,4089.9,4089.7,0.4079]
[1759151104549,0.43988,4090.1,4090.0,0.1643]
[1759151104748,0.43988,4090.1,4090.0,0.8382]
[1759151104950,0.43988,4090.1,4090.0,0.5722]
[1759151105662,3.64768,4090.1,4090.0,0.5722]
[1759151106047,3.64768,4090.1,4090.0,0.01194]
[1759151106248,3.64768,4090.1,4089.5,0.16676892]
[1759151106249,0.43993,4089.6,4089.5,0.16676892]
[1759151107550,0.43993,4089.6,4089.5,0.43276892]
[1759151107958,3.64768,4090.1,4090.0,0.1643]
[1759151108153,3.64768,4090.1,4090.0,0.5722]
[1759151109442,3.2078,4090.1,4090.0,0.5722]
[1759151109641,0.43982,4090.6,4090.5,0.5722]
[1759151110451,3.2078,4090.7,4090.1,0.4079]
[1759151110751,3.64761,4090.7,4090.6,0.4079]
[1759151112454,3.64761,4090.7,4090.0,0.1643]
[1759151112455,0.43987,4090.2,4090.1,0.4079]
[1759151112656,3.64767,4090.2,4090.0,0.1643]
[1759151112847,3.64767,4090.2,4090.1,0.4079]
[1759151115059,1.09976,4089.9,4089.6,0.4132]
[1759151115257,0.43992,4089.7,4089.6,0.4132]
[1759151117249,0.43993,4089.6,4089.2,3.2078]
[1759151117456,0.43993,4089.6,4089.5,0.00246892]
[1759151117849,0.43993,4089.6,4089.5,0.58106892]
[1759151118554,0.43993,4089.6,4089.5,0.00246892]
[1759151120563,3.64773,4089.6,4089.5,0.00246892]
[1759151121758,3.64773,4089.6,4089.5,0.41566892]
[1759151121958,3.64773,4089.6,4089.5,0.58106892]
[1759151122860,3.2078,4090.1,4089.5,1.28501892]
[1759151123059,3.64768,4090.1,4090.0,0.1654]
[1759151123362,3.64768,4090.1,4090.0,0.5786]
[1759151124955,3.2078,4090.1,4090.0,0.5786]
[1759151125156,3.64768,4090.1,4090.0,0.5786]
[1759151125356,0.43992,4089.8,4089.7,0.264]
[1759151125560,0.43992,4089.8,4089.7,0.6732]
[1759151126259,0.43991,4089.9,4089.8,0.4092]
[1759151126460,3.4718,4090.7,4089.8,0.4092]
[1759151126669,3.4718,4090.7,4089.6,1.36385]
[1759151126670,0.43983,4090.6,4090.5,0.5765]
[1759151127969,3.2078,4090.7,4090.5,0.5765]
[1759151128168,0.4398,4090.9,4090.8,0.4092]
[1759151128470,0.43978,4091.1,4091.0,0.5765]
[1759151129169,3.2298,4092.9,4092.0,0.1673]
[1759151129364,0.4396,4092.7,4092.6,0.4092]
[1759151129669,10.3896,4092.7,4092.6,0.4092]
[1759151130271,10.39227813,4092.7,4092.6,0.41223605]
[1759151131066,9.95267813,4092.7,4092.6,0.41223605]
[1759151133370,9.95267813,4092.7,4092.6,5.41223605]
[1759151133771,9.77237802,4092.7,4092.6,5.41223605]
[1759151134170,8.92807802,4092.7,4092.6,5.41223605]
[1759151134366,8.92807802,4092.7,4092.6,5.00303605]
[1759151134367,5.12237802,4092.7,4092.6,5.00303605]
[1759151134567,3.43367802,4092.7,4092.6,5.00303605]
[1759151135475,1.14817802,4092.7,4092.6,5.00303605]
[1759151135868,0.30000802,4092.7,4092.6,5.00303605]
[1759151136074,8.02e-06,4093.0,4092.9,0.43958]
[1759151136368,0.1532,4093.5,4093.4,0.43953]
[1759151136570,0.1532,4093.5,4093.4,3.64733]
[1759151136872,0.15516099,4093.5,4093.4,3.4718]
[1759151137377,0.15516099,4093.5,4093.4,8.4718]
[1759151137777,0.15516099,4093.5,4093.4,3.4718]
[1759151137981,0.57116099,4093.5,4093.4,3.4718]
[1759151139078,0.57116099,4093.5,4093.4,8.4718]
[1759151139479,0.57116099,4093.5,4093.4,3.4718]
[1759151139874,0.57116099,4093.5,4093.4,8.4718]
[1759151139875,0.15320099,4093.5,4093.4,8.4718]
[1759151140070,9.9e-07,4093.5,4093.4,8.4718]
[1759151140469,9.9e-07,4093.5,4093.4,3.4718]
[1759151140682,9.9e-07,4093.5,4093.4,41.5898]
[1759151140884,0.00272864,4093.5,4093.4,3.2078]
[1759151141180,0.00272864,4093.5,4093.4,41.5888]
[1759151141385,0.00272864,4093.5,4093.4,46.5888]
[1759151141881,8.64e-06,4093.5,4093.4,46.5888]
[1759151142870,4.71e-06,4093.5,4093.4,46.5888]
[1759151143079,0.15320471,4093.5,4093.4,46.5888]
[1759151143281,4.71e-06,4093.5,4093.4,46.5888]
[1759151144382,0.4177745,4093.5,4093.4,46.5888]
[1759151144677,0.4177745,4093.5,4093.4,41.5818]
[1759151145789,0.4177745,4093.5,4093.4,3.2078]
[1759151146077,0.4177745,4093.5,4093.4,3.4708]
[1759151146283,0.4177745,4093.5,4093.4,3.91032]
[1759151146480,0.4177745,4093.5,4093.4,3.64732]
[1759151146682,0.4177745,4093.5,4093.4,3.90932]
[1759151147383,0.8572845,4093.5,4093.4,3.4698]
[1759151148182,0.8572845,4093.5,4093.4,3.2078]
[1759151148382,0.8572845,4093.5,4093.4,3.4698]
[1759151148584,0.4177745,4093.5,4093.4,3.90933]
[1759151148883,0.8572945,4093.5,4093.4,3.2078]
[1759151149280,5.8572945,4093.5,4093.4,3.2078]
[1759151149586,5.8572945,4093.5,4093.4,0.6747]
[1759151150382,0.8572945,4093.5,4093.4,0.6747]
[1759151150690,0.4177745,4093.5,4093.4,0.6747]
[1759151151686,0.4177745,4093.5,4092.6,0.02743605]
[1759151151687,1.00876,4093.0,4092.9,3.2078]
[1759151151886,1.00876,4093.0,4092.9,3.4698]
[1759151152480,1.00876,4093.0,4092.9,3.2078]
[1759151152686,1.00877,4093.0,4092.9,3.4698]
[1759151153382,1.00877,4093.0,4092.6,0.02743605]
[1759151153383,0.416,4092.7,4092.6,0.02743605]
[1759151153687,0.8556,4092.7,4092.6,0.00303605]
[1759151154585,0.416,4092.7,4092.6,0.44264605]
[1759151154987,0.8556,4092.7,4092.6,0.00303605]
[1759151155582,0.416,4092.7,4092.6,0.44264605]
[1759151156687,0.416,4092.7,4092.6,5.44264605]
[1759151157085,0.6169,4093.0,4092.9,0.43958]
[1759151157285,0.6169,4093.0,4092.9,3.90938]
[1759151159292,0.43958,4092.9,4092.8,0.43959]
[1759151159591,0.4637,4092.9,4092.8,0.70159]
[1759151160292,0.4637,4092.9,4092.8,0.43959]
[1759151160795,0.4637,4092.9,4092.8,0.70159]
[1759151161187,0.9033,4092.8,4092.7,0.0244]
[1759151161386,0.9033,4092.8,4092.7,0.2864]
[1759151161587,0.9033,4092.8,4092.7,0.262]
[1759151162600,0.9033,4092.8,4092.7,0.7016]
[1759151163094,0.4637,4092.8,4092.7,0.7016]
[1759151163288,0.90329,4092.8,4092.7,0.7016]
[1759151163491,0.4637,4092.8,4092.7,0.7016]
[1759151163886,0.4637,4092.8,4092.6,0.00303605]
[1759151164090,0.4637,4092.8,4092.7,0.70161]
[1759151166198,0.9033,4092.7,4092.6,0.00303605]
[1759151166500,0.9034,4091.9,4091.8,3.2078]
[1759151166703,0.6522,4091.5,4091.3,4.51235749]
[1759151166892,0.6522,4091.5,4091.4,0.70174]
[1759151167389,0.6522,4091.5,4091.4,0.70376302]
[1759151167587,0.6522,4091.5,4091.4,0.26402302]
[1759151168288,0.6522,4091.5,4091.4,0.00202302]
[1759151168596,0.6522,4091.5,4091.4,0.26402302]
[1759151170196,5.6522,4091.5,4091.4,0.00202302]
[1759151170503,5.6522,4091.5,4091.4,0.26302302]
[1759151170697,5.6522,4091.5,4091.4,0.00202302]
[1759151170898,1.53911,4091.4,4090.8,3.2078]
[1759151171196,0.62829,4091.0,4090.8,3.2078]
[1759151171396,0.90351,4090.8,4090.7,0.0244]
[1759151171601,0.90351,4090.8,4090.7,0.2854]
[1759151171897,9.11131,4090.8,4090.7,0.0244]
[1759151172101,9.11131,4090.8,4090.7,0.0265862]
[1759151173008,0.4637,4089.8,4089.7,3.2078]
[1759151173194,0.4637,4089.8,4089.7,3.4688]